fUSD/lending_fUSD_20251224
["ID","MTS","AMOUNT","RATE_DAILY","PERIOD"]
[399611430,1766544660988,-504.03,0.000348,31]
[399611431,1766544661001,-300.0,0.00034803,2]
[399611432,1766544661013,-300.0,0.0003481,2]
[399611433,1766544661025,-1000.0,0.00034825,2]
[399611434,1766544661039,-1000.0,0.00034831,2]
[399611435,1766544661053,-300.0,0.00034837,2]
[399611436,1766544661066,-1000.0,0.00034843,2]
[399611437,1766544661079,-1000.0,0.00034848,2]
[399611438,1766544661092,-300.0,0.00034856,2]
[399611439,1766544661106,-300.0,0.00034862,2]
[399611440,1766544661118,-150.0,0.00034865,2]
[399611441,1766544661132,-300.0,0.00034875,2]
[399611442,1766544661146,-300.0,0.00034882,2]
[399611443,1766544661159,-150.0,0.0003489,2]
[399611444,1766544661171,-3594.04,0.000349,2]
[399611445,1766544661184,-300.0,0.00034901,2]
[399611446,1766544661197,-706.05723699,0.00034901,2]
[399611447,1766544661208,-254.13060141,0.00034902,2]
[399611448,1766544661219,-300.0,0.00034903,2]
[399611449,1766544661233,-300.0,0.00034904,2]
[399611450,1766544661247,-1000.0,0.00034908,2]
[399611451,1766544661260,-300.0,0.00034921,2]
[399611452,1766544661272,-300.0,0.00034923,2]
[399611453,1766544661285,-216.99,0.00034931,31]
[399611454,1766544661299,-1000.0,0.00034933,2]
[399611455,1766544661312,-300.0,0.00034933,2]
[399611456,1766544661325,-300.0,0.00034938,2]
[399611457,1766544661339,-300.0,0.00034938,2]
[399611458,1766544661352,-150.0,0.0003494,2]
[399611459,1766544661366,-1000.0,0.00034949,2]
[399611460,1766544661378,-1500.0,0.00034965,3]
[399611461,1766544661394,-1500.0,0.00034965,2]
[399611462,1766544661406,-1000.0,0.00034966,2]
[399611463,1766544661420,-1000.0,0.00034978,2]
[399611464,1766544661433,-3455.717,0.00034983,2]
[399611465,1766544661445,-612.0,0.00034983,2]
[399611466,1766544661458,-1326.0,0.00034983,2]
[399611467,1766544661472,-1609.0,0.00034983,2]
[399611468,1766544661485,-409.0,0.00034983,2]
[399611469,1766544661498,-1263.0,0.00034983,2]
[399611470,1766544661512,-4807.0,0.00034983,2]
[399611471,1766544661527,-2430.0,0.00034983,2]
[399611472,1766544661541,-1000.0,0.00034983,2]
[399611473,1766544661553,-1000.0,0.00034995,2]
[399611474,1766544661566,-500.0,0.00034999,120]
[399611475,1766544661578,-500.0,0.00034999,120]
[399611476,1766544661590,-500.0,0.00034999,120]
[399611477,1766544661601,-500.0,0.00034999,120]
[399611478,1766544661616,-500.0,0.00034999,120]
[399611479,1766544661627,-500.0,0.00034999,120]
[399611480,1766544661639,-519.87265517,0.00034999,120]
[399611481,1766544661651,-505.25,0.00034999,120]
[399611482,1766544661665,-505.25,0.00034999,120]
[399611483,1766544661679,-505.25,0.00034999,120]
[399611484,1766544661691,-190.61186864,0.00035,2]
[399611485,1766544661702,-252.87,0.00035,3]
[399611486,1766544661712,-1906.29505679,0.00035,2]
[399611487,1766544661723,-150.0,0.00035,2]
[399611488,1766544661736,-7325.77362823,0.00035,30]
[399611489,1766544661750,-222.4,0.00035,12]
[399611490,1766544661762,-150.0,0.00035,12]
[399611491,1766544661777,-440.13378286,0.00035,2]
[399611492,1766544661791,-625.76343979,0.00035,2]
[399611493,1766544661802,-186.82,0.00035,31]
[399611494,1766544661813,-186.82,0.00035,31]
[399611495,1766544661827,-1500.0,0.00035,17]
[399611496,1766544661838,-390.0,0.00035,2]
[399611497,1766544661851,-608989.3622322,0.00035,3]
[399611498,1766544661863,-463.94482134,0.00035001,2]
[399611499,1766544661874,-1474.2,0.00035004,4]
[399611500,1766544661886,-400.0,0.00035006,30]
[399611501,1766544661898,-400.0,0.00035006,30]
[399611502,1766544661909,-400.0,0.00035006,30]
[399611503,1766544661920,-400.0,0.00035006,30]
[399611504,1766544661932,-400.0,0.00035006,30]
[399611505,1766544661944,-415.51632459,0.00035006,30]
[399611506,1766544661956,-170.92,0.00035068,2]
[399611507,1766544661973,-173.63,0.000351,14]
[399611508,1766544661989,-151.1,0.000351,14]
[399611509,1766544662011,-151.33873241,0.00035147,2]
[399611510,1766544662034,-178.5,0.00035342,2]
[399611511,1766544662057,-1000.0,0.0003537,2]
[399611512,1766544662080,-534.0,0.00035441,30]
[399611513,1766544662099,-152.0,0.00035453,7]
[399611514,1766544662112,-210.08472468,0.00035616,30]
[399611515,1766544662124,-164.78374697,0.00035616,54]
[399611516,1766544662137,-627.0,0.00035616,18]
[399611517,1766544662149,-3640.67,0.00035616,120]
[399611518,1766544662161,-216.99,0.00035616,32]
[399611519,1766544662174,-253.595939,0.00035616,31]
[399611520,1766544662186,-228.553849,0.00035616,31]
[399611521,1766544662198,-228.553849,0.00035616,31]
[399611522,1766544662213,-228.553849,0.00035616,31]
[399611523,1766544662225,-228.553849,0.00035616,31]
[399611524,1766544662237,-228.553849,0.00035616,31]
[399611525,1766544662249,-228.553849,0.00035616,31]
[399611526,1766544662262,-228.553849,0.00035616,31]
[399611527,1766544662274,-228.553849,0.00035616,31]
[399611528,1766544662286,-948.02,0.00035616,2]
[399611529,1766544662298,-600.0,0.00035616,2]
[399611530,1766544662310,-440.80385974,0.00035616,2]
[399611531,1766544662323,-449.7,0.000357,30]
[399611532,1766544662335,-322.777,0.00035888,30]
[399611533,1766544662347,-14236.76817137,0.000359,3]
[399611534,1766544662359,-505.25,0.00035999,120]
[399611535,1766544662371,-505.25,0.00035999,120]
[399611536,1766544662383,-505.25,0.00035999,120]
[399611537,1766544662395,-505.25,0.00035999,120]
[399611538,1766544662408,-505.42979999,0.00035999,120]
[399611539,1766544662421,-151.0,0.00035999,31]
[399611540,1766544662433,-167.3668,0.00035999,31]
[399611541,1766544662445,-153.195313,0.00035999,31]
[399611542,1766544662457,-151.0,0.00035999,31]
[399611543,1766544662468,-151.0,0.00035999,31]
[399611544,1766544662482,-151.0,0.00035999,31]
[399611545,1766544662494,-151.0,0.00035999,31]
[399611546,1766544662507,-151.0,0.00035999,31]
[399611547,1766544662520,-151.0,0.00035999,31]
[399611548,1766544662533,-151.0,0.00035999,31]
[399611549,1766544662546,-151.0,0.00035999,31]
[399611550,1766544662558,-250.417838,0.00035999,31]
[399611551,1766544662583,-151.0,0.00035999,31]
[399611552,1766544662599,-151.0,0.00035999,31]
[399611553,1766544662613,-168.423832,0.00035999,31]
[399611554,1766544662626,-168.423832,0.00035999,31]
[399611555,1766544662640,-168.423832,0.00035999,31]
[399611556,1766544662654,-168.423832,0.00035999,31]
[399611557,1766544662669,-151.0,0.00035999,31]
[399611558,1766544662684,-151.0,0.00035999,31]
[399611559,1766544662698,-151.0,0.00035999,31]
[399611560,1766544662712,-151.0,0.00035999,31]
[399611561,1766544662726,-151.0,0.00035999,31]
[399611562,1766544662744,-163.670383,0.00035999,31]
[399611563,1766544662759,-163.670383,0.00035999,31]
[399611564,1766544662773,-151.0,0.00035999,31]
[399611565,1766544662788,-163.670383,0.00035999,31]
[399611566,1766544662802,-151.0,0.00035999,31]
[399611567,1766544662817,-151.0,0.00035999,31]
[399611568,1766544662830,-163.670383,0.00035999,31]
[399611569,1766544662845,-151.0,0.00035999,31]
[399611570,1766544662858,-151.0,0.00035999,31]
[399611571,1766544662871,-151.0,0.00035999,31]
[399611572,1766544662885,-151.0,0.00035999,31]
[399611573,1766544662898,-151.0,0.00035999,31]
[399611574,1766544662911,-151.0,0.00035999,31]
[399611575,1766544662923,-151.0,0.00035999,31]
[399611576,1766544662936,-151.0,0.00035999,31]
[399611577,1766544662948,-712.564024,0.00035999,31]
[399611578,1766544662961,-712.564024,0.00035999,31]
[399611579,1766544662972,-712.564024,0.00035999,31]
[399611580,1766544662984,-712.564024,0.00035999,31]
[399611581,1766544662995,-196.791148,0.00035999,31]
[399611582,1766544663007,-216.678829,0.00035999,31]
[399611583,1766544663020,-216.678829,0.00035999,31]
[399611584,1766544663032,-216.678829,0.00035999,31]
[399611585,1766544663043,-151.0,0.00035999,31]
[399611586,1766544663054,-216.678829,0.00035999,31]
[399611587,1766544663067,-260.91992875,0.00036,2]
[399611588,1766544663080,-152.44915668,0.00036,2]
[399611589,1766544663093,-400.0,0.00036,120]
[399611590,1766544663106,-150.0,0.00036,120]
[399611591,1766544663118,-424.11,0.00036,30]
[399611592,1766544663131,-200000.0,0.00036,3]
[399611593,1766544663144,-150.0,0.00036,13]
[399611594,1766544663157,-151.0,0.00036,31]
[399611595,1766544663169,-151.0,0.00036,31]
[399611596,1766544663181,-151.0,0.00036,31]
[399611597,1766544663192,-192.793364,0.00036,31]
[399611598,1766544663204,-154.007077,0.00036,31]
[399611599,1766544663215,-151.0,0.00036,31]
[399611600,1766544663227,-151.0,0.00036,31]
[399611601,1766544663254,-153.990546,0.00036,31]
[399611602,1766544663267,-151.0,0.00036,31]
[399611603,1766544663280,-151.0,0.00036,31]
[399611604,1766544663292,-216.48453,0.00036,31]
[399611605,1766544663304,-154.152189,0.00036,31]
[399611606,1766544663316,-151.0,0.00036,31]
[399611607,1766544663327,-262.524297,0.00036,31]
[399611608,1766544663339,-151.0,0.00036,31]
[399611609,1766544663351,-151.0,0.00036,31]
[399611610,1766544663362,-151.0,0.00036,31]
[399611611,1766544663374,-151.0,0.00036,31]
[399611612,1766544663387,-287.802169,0.00036,31]
[399611613,1766544663398,-287.802169,0.00036,31]
[399611614,1766544663409,-287.802169,0.00036,31]
[399611615,1766544663422,-151.0,0.00036,31]
[399611616,1766544663433,-287.802169,0.00036,31]
[399611617,1766544663445,-151.0,0.00036,31]
[399611618,1766544663456,-151.0,0.00036,31]
[399611619,1766544663468,-151.0,0.00036,31]
[399611620,1766544663482,-254.856091,0.00036,31]
[399611621,1766544663494,-228.553849,0.00036,31]
[399611622,1766544663506,-228.553849,0.00036,31]
[399611623,1766544663518,-151.0,0.00036,31]
[399611624,1766544663531,-228.553849,0.00036,31]
[399611625,1766544663543,-263.88349,0.00036,31]
[399611626,1766544663555,-228.553849,0.00036,31]
[399611627,1766544663566,-168.515848,0.00036,31]
[399611628,1766544663579,-151.0,0.00036,31]
[399611629,1766544663592,-151.0,0.00036,31]
[399611630,1766544663604,-151.0,0.00036,31]
[399611631,1766544663616,-151.0,0.00036,31]
[399611632,1766544663628,-151.0,0.00036,31]
[399611633,1766544663639,-151.000009,0.00036,31]
[399611634,1766544663651,-154.730785,0.00036,31]
[399611635,1766544663663,-151.0,0.00036,31]
[399611636,1766544663675,-151.0,0.00036,31]
[399611637,1766544663688,-157.376427,0.00036,31]
[399611638,1766544663699,-204.565441,0.00036,31]
[399611639,1766544663711,-151.0,0.00036,31]
[399611640,1766544663724,-151.0,0.00036,30]
[399611641,1766544663741,-151.0,0.00036,31]
[399611642,1766544663754,-151.0,0.00036,30]
[399611643,1766544663767,-183.868215,0.00036,31]
[399611644,1766544663780,-151.0,0.00036,31]
[399611645,1766544664782,-151.0,0.00036,31]
[399611646,1766544664818,-151.0,0.00036,31]
[399611647,1766544664833,-151.0,0.00036,31]
[399611648,1766544664843,-151.0,0.00036,31]
[399611649,1766544664854,-151.0,0.00036,31]
[399611650,1766544664865,-151.0,0.00036,31]
[399611651,1766544664875,-151.0,0.00036,31]
[399611652,1766544664886,-151.0,0.00036,31]
[399611653,1766544664896,-151.0,0.00036,31]
[399611654,1766544664907,-151.0,0.00036,31]
[399611655,1766544664918,-151.0,0.00036,31]
[399611656,1766544664928,-151.0,0.00036,31]
[399611657,1766544664938,-158.656115,0.00036,31]
[399611658,1766544664948,-154.889231,0.00036,31]
[399611659,1766544664958,-154.889231,0.00036,31]
[399611660,1766544664968,-154.889231,0.00036,31]
[399611661,1766544664978,-154.889231,0.00036,31]
[399611662,1766544664989,-151.0,0.00036,31]
[399611663,1766544664999,-151.568408,0.00036,31]
[399611664,1766544665011,-196.637854,0.00036,31]
[399611665,1766544665021,-196.637854,0.00036,31]
[399611666,1766544665031,-196.637854,0.00036,31]
[399611667,1766544665041,-196.637854,0.00036,31]
[399611668,1766544665051,-151.0,0.00036,31]
[399611669,1766544665062,-151.0,0.00036,31]
[399611670,1766544665071,-151.0,0.00036,31]
[399611671,1766544665082,-271.204219,0.00036,31]
[399611672,1766544665091,-271.204219,0.00036,31]
[399611673,1766544665102,-271.204219,0.00036,31]
[399611674,1766544665113,-271.204219,0.00036,31]
[399611675,1766544665122,-151.0,0.00036,31]
[399611676,1766544665132,-153.105679,0.00036,31]
[399611677,1766544665143,-151.0,0.00036,31]
[399611678,1766544665154,-151.0,0.00036,31]
[399611679,1766544665165,-158.208195,0.00036,31]
[399611680,1766544665175,-151.0,0.00036,31]
[399611681,1766544665185,-151.0,0.00036,31]
[399611682,1766544665195,-151.0,0.00036,31]
[399611683,1766544665205,-151.0,0.00036,31]
[399611684,1766544665215,-151.0,0.00036,31]
[399611685,1766544665226,-219.673336,0.00036,31]
[399611686,1766544665236,-151.0,0.00036,31]
[399611687,1766544665246,-151.0,0.00036,2]
[399611688,1766544665257,-151.0,0.00036,31]
[399611689,1766544665267,-151.0,0.00036,31]
[399611690,1766544665278,-166.555087,0.00036,31]
[399611691,1766544665287,-151.0,0.00036,31]
[399611692,1766544665298,-151.0,0.00036,31]
[399611693,1766544665308,-151.0,0.00036,31]
[399611694,1766544665319,-151.0,0.00036,31]
[399611695,1766544665330,-191.18253,0.00036,31]
[399611696,1766544665340,-178.263654,0.00036,31]
[399611697,1766544665351,-178.263654,0.00036,31]
[399611698,1766544665360,-178.263654,0.00036,31]
[399611699,1766544665370,-178.263654,0.00036,31]
[399611700,1766544665380,-151.0,0.00036,31]
[399611701,1766544665390,-151.0,0.00036,31]
[399611702,1766544665399,-151.0,0.00036,31]
[399611703,1766544665409,-151.0,0.00036,31]
[399611704,1766544665419,-151.0,0.00036,31]
[399611705,1766544665429,-163.80589,0.00036,31]
[399611706,1766544665438,-151.0,0.00036,31]
[399611707,1766544665448,-176.369104,0.00036,31]
[399611708,1766544665458,-151.0,0.00036,31]
[399611709,1766544665468,-151.0,0.00036,31]
[399611710,1766544665479,-214.584182,0.00036,31]
[399611711,1766544665490,-151.0,0.00036,31]
[399611712,1766544665501,-214.584182,0.00036,31]
[399611713,1766544665512,-214.584182,0.00036,31]
[399611714,1766544665522,-165.331872,0.00036,31]
[399611715,1766544665532,-214.584182,0.00036,31]
[399611716,1766544665543,-165.331872,0.00036,31]
[399611717,1766544665552,-151.0,0.00036,31]
[399611718,1766544665563,-165.331872,0.00036,31]
[399611719,1766544665573,-151.0,0.00036,31]
[399611720,1766544665583,-165.331872,0.00036,31]
[399611721,1766544665593,-151.0,0.00036,31]
[399611722,1766544665603,-685.135947,0.00036,28]
[399611723,1766544665613,-685.135947,0.00036,28]
[399611724,1766544665624,-685.135947,0.00036,28]
[399611725,1766544665634,-685.135947,0.00036,28]
[399611726,1766544665644,-151.0,0.00036,31]
[399611727,1766544665655,-151.0,0.00036,31]
[399611728,1766544665666,-213.992262,0.00036,14]
[399611729,1766544665677,-151.0,0.00036,31]
[399611730,1766544665687,-154.077607,0.00036,31]
[399611731,1766544665698,-151.0,0.00036,31]
[399611732,1766544665708,-151.0,0.00036,31]
[399611733,1766544665718,-151.0,0.00036,31]
[399611734,1766544665729,-278.187598,0.00036,31]
[399611735,1766544665742,-152.698168,0.00036,31]
[399611736,1766544665752,-2553.16,0.00036003,2]
[399611737,1766544665762,-500.0,0.00036032,30]
[399611738,1766544665773,-500.0,0.00036057,30]
[399611739,1766544665785,-500.0,0.00036057,30]
[399611740,1766544665795,-500.0,0.00036067,30]
[399611741,1766544665805,-326.94,0.00036067,30]
[399611742,1766544665815,-1500.24,0.00036081,2]
[399611743,1766544665827,-322.777,0.00036088,30]
[399611744,1766544665836,-3594.04,0.000361,2]
[399611745,1766544665847,-6378.77,0.000361,14]
[399611746,1766544665857,-600.0,0.00036164,2]
[399611747,1766544665867,-322.777,0.00036288,30]
[399611748,1766544665876,-216.99,0.00036301,33]
[399611749,1766544665886,-1349.7,0.00036327,5]
[399611750,1766544665896,-481.11077973,0.0003637,2]
[399611751,1766544665907,-1671.15,0.00036471,2]
[399611752,1766544665916,-322.777,0.00036488,30]
[399611753,1766544665927,-2500.0,0.00036495,2]
[399611754,1766544665937,-173.63,0.000365,14]
[399611755,1766544665948,-151.1,0.000365,14]
[399611756,1766544665958,-155.0,0.00036549,30]
[399611757,1766544665969,-151.33873241,0.00036553,2]
[399611758,1766544665979,-2553.15,0.0003657,2]
[399611759,1766544665989,-449.7,0.000366,30]
[399611760,1766544666000,-2000.0,0.000366,2]
[399611761,1766544666010,-661.33,0.0003667,2]
[399611762,1766544666020,-1349.7,0.00036671,5]
[399611763,1766544666029,-322.777,0.00036688,30]
[399611764,1766544666039,-185.19,0.00036758,120]
[399611765,1766544666049,-641.17,0.00036797,2]
[399611766,1766544666059,-1599.84756644,0.000368,2]
[399611767,1766544666069,-1941.82056311,0.000368,2]
[399611768,1766544666079,-322.777,0.00036888,30]
[399611769,1766544666089,-1075.9233,0.00036888,7]
[399611770,1766544666099,-209.0,0.0003689,30]
[399611771,1766544666109,-3594.04,0.000369,2]
[399611772,1766544666119,-1474.2,0.00036946,5]
[399611773,1766544666129,-969.22,0.00036951,2]
[399611774,1766544666138,-634.13,0.00036962,2]
[399611775,1766544666148,-210.23566362,0.00036986,72]
[399611776,1766544666159,-3640.67,0.00036986,120]
[399611777,1766544666169,-216.99,0.00036986,34]
[399611778,1766544666180,-164.5528546,0.00037,2]
[399611779,1766544666190,-150.0,0.00037,120]
[399611780,1766544666200,-500.0,0.00037,120]
[399611781,1766544666211,-165.0,0.00037,120]
[399611782,1766544666221,-200000.0,0.00037,3]
[399611783,1766544666231,-159.07149869,0.00037,7]
[399611784,1766544666242,-200.0,0.00037,15]
[399611785,1766544666252,-1349.7,0.00037014,5]
[399611786,1766544666262,-322.777,0.00037088,30]
[399611787,1766544666273,-152.0,0.0003709,8]
[399611788,1766544666283,-247.00629846,0.000372,120]
[399611789,1766544666292,-247.00629844,0.000372,120]
[399611790,1766544666304,-247.00629844,0.000372,120]
[399611791,1766544666314,-322.777,0.00037288,30]
[399611792,1766544666325,-1349.7,0.00037358,5]
[399611793,1766544666335,-200.0,0.00037404,2]
[399611794,1766544666345,-200.0,0.00037404,2]
[399611795,1766544666355,-200.0,0.00037404,2]
[399611796,1766544666364,-200.0,0.00037404,2]
[399611797,1766544666374,-200.0,0.00037404,2]
[399611798,1766544666383,-200.0,0.00037404,2]
[399611799,1766544666393,-200.0,0.00037404,2]
[399611800,1766544666403,-200.0,0.00037404,2]
[399611801,1766544666413,-200.0,0.00037404,2]
[399611802,1766544666423,-200.0,0.00037404,2]
[399611803,1766544666433,-200.0,0.00037404,2]
[399611804,1766544666442,-200.0,0.00037404,2]
[399611805,1766544666452,-200.0,0.00037404,2]
[399611806,1766544666461,-200.0,0.00037404,2]
[399611807,1766544666471,-200.0,0.00037404,2]
[399611808,1766544666481,-200.0,0.00037404,2]
[399611809,1766544666500,-200.0,0.00037404,2]
[399611810,1766544666511,-200.0,0.00037404,2]
[399611811,1766544666521,-200.0,0.00037404,2]
[399611812,1766544666530,-200.0,0.00037404,2]
[399611813,1766544666540,-200.0,0.00037404,2]
[399611814,1766544666550,-200.0,0.00037404,2]
[399611815,1766544666560,-200.0,0.00037404,2]
[399611816,1766544666569,-200.0,0.00037404,2]
[399611817,1766544666579,-200.0,0.00037404,2]
[399611818,1766544666589,-200.0,0.00037404,2]
[399611819,1766544666599,-200.0,0.00037404,2]
[399611820,1766544666609,-200.0,0.00037404,2]
[399611821,1766544666619,-200.0,0.00037404,2]
[399611822,1766544666629,-200.0,0.00037404,2]
[399611823,1766544666639,-200.0,0.00037404,2]
[399611824,1766544666649,-200.0,0.00037404,2]
[399611825,1766544666658,-200.0,0.00037404,2]
[399611826,1766544666668,-200.0,0.00037404,2]
[399611827,1766544666677,-202.0,0.00037404,2]
[399611828,1766544666688,-346.0,0.00037404,2]
[399611829,1766544666698,-322.777,0.00037488,30]
[399611830,1766544666708,-173.63,0.000375,14]
[399611831,1766544666719,-151.1,0.000375,14]
[399611832,1766544666729,-6378.77,0.000375,14]
[399611833,1766544666740,-150.0,0.000376,2]
[399611834,1766544666754,-150.0,0.000376,2]
[399611835,1766544666765,-150.0,0.000376,2]
[399611836,1766544666775,-449.7,0.000376,30]
[399611837,1766544666786,-665.48,0.00037616,2]
[399611838,1766544666796,-534.0,0.00037656,30]
[399611839,1766544666806,-216.99,0.00037671,35]
[399611840,1766544666817,-322.777,0.00037688,30]
[399611841,1766544666828,-1349.7,0.00037702,5]
[399611842,1766544666838,-454.03469393,0.00037739,2]
[399611843,1766544666849,-200.72424936,0.0003788,2]
[399611844,1766544666859,-322.777,0.00037888,30]
[399611845,1766544666869,-151.33873249,0.00037959,2]
[399611846,1766544666879,-534.0,0.00037973,30]
[399611847,1766544666889,-612.0,0.00037983,2]
[399611848,1766544666899,-1326.0,0.00037983,2]
[399611849,1766544666909,-1609.0,0.00037983,2]
[399611850,1766544666919,-409.0,0.00037983,2]
[399611851,1766544666930,-1263.0,0.00037983,2]
[399611852,1766544666940,-2430.0,0.00037983,2]
[399611853,1766544666949,-509.0,0.00038,120]
[399611854,1766544666959,-312.65497417,0.00038,120]
[399611855,1766544666968,-150.0,0.00038,120]
[399611856,1766544666978,-400.5150693,0.00038,7]
[399611857,1766544666988,-233.85760035,0.00038,2]
[399611858,1766544666998,-154.9,0.00038,14]
[399611859,1766544667008,-200000.0,0.00038,3]
[399611860,1766544667018,-160.0,0.0003804,11]
[399611861,1766544667028,-160.0,0.0003804,11]
[399611862,1766544667038,-1349.7,0.00038045,5]
[399611863,1766544667047,-322.777,0.00038088,30]
[399611864,1766544667057,-553.9,0.00038192,2]
[399611865,1766544667066,-322.777,0.00038288,30]
[399611866,1766544667076,-199.34,0.00038356,120]
[399611867,1766544667086,-3640.67,0.00038356,120]
[399611868,1766544667096,-216.99,0.00038356,36]
[399611869,1766544667105,-300.0,0.00038356,120]
[399611870,1766544667115,-300.0,0.00038356,120]
[399611871,1766544667124,-300.0,0.00038356,120]
[399611872,1766544667134,-300.0,0.00038356,120]
[399611873,1766544667143,-300.0,0.00038356,120]
[399611874,1766544667154,-300.0,0.00038356,120]
[399611875,1766544667164,-300.0,0.00038356,120]
[399611876,1766544667173,-300.0,0.00038356,120]
[399611877,1766544667284,-300.0,0.00038356,120]
[399611878,1766544667295,-300.0,0.00038356,120]
[399611879,1766544667305,-300.0,0.00038356,120]
[399611880,1766544667315,-300.0,0.00038356,120]
[399611881,1766544667324,-300.0,0.00038356,120]
[399611882,1766544667334,-300.0,0.00038356,120]
[399611883,1766544667344,-300.0,0.00038356,120]
[399611884,1766544667354,-300.0,0.00038356,120]
[399611885,1766544667363,-300.0,0.00038356,120]
[399611886,1766544667373,-300.0,0.00038356,120]
[399611887,1766544667383,-300.0,0.00038356,120]
[399611888,1766544667392,-300.0,0.00038356,120]
[399611889,1766544667402,-300.0,0.00038356,120]
[399611890,1766544667411,-300.0,0.00038356,120]
[399611891,1766544667421,-300.0,0.00038356,120]
[399611892,1766544667431,-300.0,0.00038356,120]
[399611893,1766544667440,-300.0,0.00038356,120]
[399611894,1766544667450,-300.0,0.00038356,120]
[399611895,1766544667459,-300.0,0.00038356,120]
[399611896,1766544667469,-300.0,0.00038356,120]
[399611897,1766544667479,-300.0,0.00038356,120]
[399611898,1766544667488,-300.0,0.00038356,120]
[399611899,1766544667498,-300.0,0.00038356,120]
[399611900,1766544667507,-300.0,0.00038356,120]
[399611901,1766544667517,-300.0,0.00038356,120]
[399611902,1766544667527,-300.0,0.00038356,120]
[399611903,1766544667536,-300.0,0.00038356,120]
[399611904,1766544667546,-300.0,0.00038356,120]
[399611905,1766544667556,-300.0,0.00038356,120]
[399611906,1766544667565,-300.0,0.00038356,120]
[399611907,1766544667575,-300.0,0.00038356,120]
[399611908,1766544667584,-300.0,0.00038356,120]
[399611909,1766544667594,-300.0,0.00038356,120]
[399611910,1766544667604,-300.0,0.00038356,120]
[399611911,1766544667614,-300.0,0.00038356,120]
[399611912,1766544667624,-300.0,0.00038356,120]
[399611913,1766544667633,-300.0,0.00038356,120]
[399611914,1766544667643,-300.0,0.00038356,120]
[399611915,1766544667657,-300.0,0.00038356,120]
[399611916,1766544667667,-300.0,0.00038356,120]
[399611917,1766544667676,-300.0,0.00038356,120]
[399611918,1766544667685,-300.0,0.00038356,120]
[399611919,1766544667696,-300.0,0.00038356,120]
[399611920,1766544667705,-300.0,0.00038356,120]
[399611921,1766544667715,-300.0,0.00038356,120]
[399611922,1766544667725,-300.0,0.00038356,120]
[399611923,1766544667738,-300.0,0.00038356,120]
[399611924,1766544667755,-300.0,0.00038356,120]
[399611925,1766544667765,-300.0,0.00038356,120]
[399611926,1766544667775,-300.0,0.00038356,120]
[399611927,1766544667787,-300.0,0.00038356,120]
[399611928,1766544667797,-300.0,0.00038356,120]
[399611929,1766544667806,-300.0,0.00038356,120]